[Event "12th WLC Weekend 2022"]
[Site "Eindhoven"]
[Date "2022.05.14"]
[Round "3.24"]
[White "Krueger, Andre"]
[Black "Dekker, Marvin"]
[Result "0-1"]
[ECO "A43"]
[WhiteElo "1970"]
[BlackElo "2014"]
[Annotator "TA"]
[PlyCount "98"]
[EventDate "2022.05.13"]
[EventType "swiss"]
[EventCountry "NED"]
[SourceTitle "playchess.com"]
[Source "ChessBase"]
[SourceQuality "1"]
[TimeControl "5400+30"]

{[%evp 9,98,63,60,12,14,-59,-30,-61,-42,-58,-55,-45,-41,-58,-29,-64,-22,-23,0,-12,-11,-51,0,0,0,-8,28,28,116,-100,-90,-87,-94,-333,-352,-345,-327,-607,-668,-664,-664,-660,-654,-634,-603,-647,-659,-609,-543,-2128,-2610,-1457,-795,-739,-711,-1570,0,-479,-492,-1122,-1100,-29970,-29971,-5297,-439,-583,-559,-570,-443,-364,-343,-533,-588,-984,-984,-690,-945,-922,-879,-854,-837,-764,-662,-1050,-1001,-29986,-987,-29967,-6079,-1968,-986]} 1. d4 {[%emt 0:00:02]} Nf6 {[%emt 0:10:43]} 2. Nf3 {[%emt 0:00:09]} c5 {[%emt 0:00:06]} 3. d5 {[%emt 0:00:21]} e6 {[%emt 0:00:09]} 4. Nc3 {[%emt 0:01:37]} b5 {[%emt 0:03:44]} 5. dxe6 {[%emt 0:15:47]} fxe6 {[%emt 0:00:16]} 6. Bg5 {[%emt 0:07:50] A43: Schmid Benoni.} (6. Nxb5 $14 {might be stronger.} Qa5+ 7. Nc3) 6... Be7 $11 {[%emt 0:09:44] [#]} 7. e3 $146 {[%emt 0:04:07]} (7. Nxb5 $11 Qa5+ 8. Nc3) ({Predecessor:} 7. e4 b4 8. Nb5 Nxe4 9. Bxe7 Kxe7 10. a3 Qb6 11. axb4 cxb4 12. Qd4 Qxd4 13. Nfxd4 a6 14. Nb3 Bb7 15. Nc7 Ra7 16. Nb5 Ra8 17. Nc7 {½-½ (17) Myzyk,J (2105)-Budrewicz,K (2374) Chojnice 2009}) 7... a6 $1 $15 {[%emt 0:01:35]} 8. Be2 {[%emt 0:00:24] Black has an edge.} O-O {[%emt 0:00:40]} 9. O-O {[%emt 0:00:11]} d5 {[%emt 0:01:09]} 10. a4 {[%emt 0:06:07]} b4 {[%emt 0:00:17]} 11. Nb1 {[%emt 0:00:08]} Nbd7 {[%emt 0:06:30]} 12. c4 {[%emt 0:03:11]} Bb7 {[%emt 0:00:57]} (12... bxc3 $5 13. Nxc3 Bd6 $15) 13. Nbd2 {[%emt 0:00:07]} Qc7 {[%emt 0:01:51]} (13... Ne4 $5 {[%cal Re4g5]} 14. Bxe7 Qxe7 $11) 14. Qc2 {[%emt 0:02:02]} Bd6 {[%emt 0:00:51]} 15. Bh4 {[%emt 0:06:20]} Ne4 {[%emt 0:02:31]} (15... d4 $5 {[%cal Rd4e3]} 16. h3 dxe3 17. fxe3 Bg3 18. Bxg3 Qxg3 $15) 16. Nxe4 {[%emt 0:04:35]} dxe4 {[%emt 0:00:04]} 17. Ng5 {[%emt 0:00:07][%csl LRe4,LRe6]} Bxh2+ {[%emt 0:01:31]} 18. Kh1 {[%emt 0:00:04]} Qe5 {[%emt 0:01:07]} (18... Rae8 $11) 19. f4 $2 {[%emt 0:17:09] [#]} (19. Bg4 $1 $16 {[%cal Rg4e6] stays on course.} Nf6 20. Bxe6+ Kh8 21. Rae1 (21. Nf7+ Rxf7 22. Bxf7 g5 $11)) 19... Bxf4 $1 $17 {[%emt 0:04:03]} 20. exf4 {[%emt 0:02:34]} (20. Rxf4 Rxf4) 20... Rxf4 {[%emt 0:00:15]} 21. g3 {[%emt 0:06:55] [#]} (21. Rxf4 $17 {was forced.} Qxf4 22. g3) 21... Rxh4+ $1 $19 {[%emt 0:04:43][%mdl 512]} 22. gxh4 {[%emt 0:00:10]} Qg3 {[%emt 0:01:07] Inhibits Bg4. Dancing on a razor blade.} 23. Bg4 $2 {[%emt 0:17:13]} (23. Bd1 Qxh4+ 24. Qh2 Qxg5 25. Qg2 Qh4+ 26. Qh2) 23... Qxg4 {[%emt 0:09:11]} 24. Qg2 {[%emt 0:00:06]} Qxh4+ {[%emt 0:05:07]} 25. Kg1 {[%emt 0:00:05]} Ne5 {[%emt 0:07:36]} 26. Nxe6 {[%emt 0:00:53][%csl Ge6][%cal Rg2g7]} Qe7 {[%emt 0:04:00]} 27. Ng5 {[%emt 0:02:24]} Nf3+ {[%emt 0:06:00]} 28. Nxf3 {[%emt 0:00:09]} exf3 {[%emt 0:00:06]} 29. Qg4 {[%emt 0:01:05]} Rf8 {[%emt 0:01:12] aiming for ...Rf6.} 30. Rf2 {[%emt 0:01:15]} Bc8 {[%emt 0:02:38]} 31. Qg3 {[%emt 0:00:46]} Rf6 {[%emt 0:01:03]} 32. Qb8 {[%emt 0:00:50]} Rf8 {[%emt 0:05:49]} (32... Qd7 $142 33. Qh2 Rg6+ 34. Kh1 Rh6 35. Qxh6 gxh6) 33. Qg3 {[%emt 0:00:05]} Rf5 {[%emt 0:03:43] ...Rg5 is the strong threat.} 34. Qb8 {[%emt 0:00:17]} (34. Kf1 $142 Rh5 35. Rh2 Rxh2 36. Qxh2) 34... Qg5+ {[%emt 0:00:27]} 35. Kf1 {[%emt 0:00:12]} Rf8 {[%emt 0:00:23]} 36. Qh2 {[%emt 0:00:13]} Qg4 {[%emt 0:01:22]} (36... b3 $142 {( -> ...Be6)} 37. Re1 Bf5) 37. b3 {[%emt 0:01:09]} Qd4 {[%emt 0:00:50][%cal Rd4a1]} 38. Re1 {[%emt 0:00:10]} Qd3+ {[%emt 0:00:53]} 39. Kg1 {[%emt 0:00:04]} Qxb3 {[%emt 0:00:35]} 40. Qd6 {[%emt 0:00:11]} (40. Qh4 $142) 40... Qxc4 {[%emt 0:02:22] Strongly threatening ...Qg4+.} 41. Qxf8+ {[%emt 0:01:42]} Kxf8 {[%emt 0:00:09]} 42. Rxf3+ {[%emt 0:00:04] [#]} Qf7 $3 {[%emt 0:00:06]} 43. Rxf7+ {[%emt 0:00:06]} Kxf7 {[%emt 0:00:05][%mdl 4096] Endgame KR-KB} 44. Rc1 {[%emt 0:00:06]} b3 {[%emt 0:02:19] Hoping for ...Bf5.} 45. Rxc5 {[%emt 0:00:01] [#]} Bd7 $1 {[%emt 0:01:49]} 46. Rc7 {[%emt 0:00:09]} Ke6 {[%emt 0:00:23]} 47. a5 {[%emt 0:00:01]} Bb5 {[%emt 0:00:44]} (47... b2 $142 48. Rb7 Bb5 49. Kh2 b1=Q 50. Rc7 Qb2+ 51. Kg1 g5 52. Rc8 g4 53. Rb8 g3 54. Rb6+ Kf5 55. Rxb5+ axb5 56. a6 Qh2+ 57. Kf1 Qf2#) 48. Rc1 {[%emt 0:00:36]} Kd5 {[%emt 0:00:16]} (48... Bd3 $142 49. Rc6+ Ke5 50. Kf2 b2 51. Ke3 b1=Q 52. Rc5+ Kd6 53. Rc8 Bf5 54. Rd8+ Kc7 55. Rh8 Qe1+ 56. Kf3 g5 57. Rxh7+ Bxh7 58. Kg4 Kd6 59. Kh3 Be4 60. Kh2 Qh1+ 61. Kg3 Qh4#) 49. Kf2 {[%emt 0:00:12]} Bd3 {[%emt 0:00:33] Weighted Error Value: White=1.35/Black=0.75} 0-1

[Event "12th WLC Weekend 2022"]
[Site "Eindhoven"]
[Date "2022.05.14"]
[Round "3.25"]
[White "Wuijts, Johan"]
[Black "Van Jaarsveld, Henk"]
[Result "1-0"]
[ECO "B23"]
[WhiteElo "1964"]
[BlackElo "1832"]
[Annotator "TA"]
[PlyCount "123"]
[EventDate "2022.05.13"]
[EventType "swiss"]
[EventCountry "NED"]
[SourceTitle "playchess.com"]
[Source "ChessBase"]
[SourceQuality "1"]
[TimeControl "5400+30"]

{[%evp 14,123,22,-5,48,37,70,57,111,103,133,139,108,121,144,144,165,166,201,200,202,175,229,204,313,311,256,210,337,310,307,293,288,142,130,132,355,332,626,598,526,436,419,405,797,793,1346,1227,712,588,642,625,841,762,1020,853,1163,1102,1097,1335,850,1226,1201,1304,1141,1105,1064,990,1312,904,1234,1272,1972,1780,12831,0,1226,948,3347,2954,2502,2366,12834,11838,12837,12836,2448,6833,2686,927,1933,1926,1615,1587,12833,10212,12835,12835,12839,12837,12841,12839,12843,12843,12845,12843,12844,12842,12842,12843,12845,12845]} 1. e4 {[%emt 0:00:03]} c5 {[%emt 0:00:05]} 2. Nc3 {[%emt 0:00:08]} Nc6 {[%emt 0:00:05]} 3. f4 {[%emt 0:00:33]} g6 {[%emt 0:00:07]} 4. Nf3 {[%emt 0:00:34]} Bg7 {[%emt 0:00:10]} 5. Bb5 {[%emt 0:00:09]} Nd4 {[%emt 0:00:24]} 6. O-O {[%emt 0:01:38]} Nxb5 {[%emt 0:00:27]} 7. Nxb5 {[%emt 0:00:07]} d5 {[%emt 0:03:44]} 8. d3 {[%emt 0:00:09]} d4 {[%emt 0:03:43] B23: Closed Sicilian: Lines without g3.} (8... a6 $11 9. Nc3 Bxc3 10. bxc3 dxe4 11. dxe4 Qxd1 12. Rxd1 Nf6) 9. a4 $14 {[%emt 0:04:34] [#]} Bg4 $146 {[%emt 0:02:49]} ({Predecessor:} 9... Bd7 10. f5 a6 11. Na3 Bxa4 12. e5 Bc6 13. Nc4 b5 14. e6 bxc4 15. exf7+ Kxf7 16. Ng5+ {0-1 (39) Shilin,D (2375)-Fuks,S (2236) Alushta 1999}) 10. h3 {[%emt 0:00:27]} Bxf3 {[%emt 0:00:06]} ({Better is} 10... Bd7 $1 $14) 11. Qxf3 $16 {[%emt 0:00:06]} ({Much worse is} 11. Rxf3 $6 Qd7 $11) 11... Nh6 {[%emt 0:06:58]} 12. f5 {[%emt 0:05:17] And now fxg6 would win.} O-O {[%emt 0:01:31]} 13. Bd2 {[%emt 0:05:26]} a6 {[%emt 0:02:33]} 14. Na3 {[%emt 0:00:14] 0x0.002158299220dp-1022s more active pieces.} Kh8 {[%emt 0:05:14]} 15. a5 {[%emt 0:01:39]} Ng8 {[%emt 0:00:53]} 16. Nc4 {[%emt 0:01:22]} Rc8 {[%emt 0:10:13]} 17. e5 {[%emt 0:05:31]} Rc6 {[%emt 0:00:52]} (17... Qc7 $142 18. Rae1 Qc6) 18. g4 $1 $18 {[%emt 0:04:00][%cal Bg2g4,Bg4f5,Bf5f6][%mdl 32]} gxf5 {[%emt 0:02:52]} (18... f6 {is a better defense.} 19. e6 Nh6) 19. gxf5 {[%emt 0:00:29]} Bh6 {[%emt 0:00:40]} 20. Bxh6 {[%emt 0:06:54]} Nxh6 {[%emt 0:02:32]} (20... Rxh6 $142 21. Kh2 (21. Qxb7 Rxh3 22. Qg2 Rh5 $11) 21... e6) 21. Kh1 {[%emt 0:00:41]} e6 {[%emt 0:02:45] [#]} 22. f6 {[%emt 0:03:38]} ({Not} 22. fxe6 Rxe6 23. Qf4 (23. Qxb7 Rg6 $14) 23... Qd5+ 24. Qf3 Qd8 $16) 22... Nf5 {[%emt 0:01:40] [#]} 23. Rg1 {[%emt 0:01:49]} (23. Qf4 $1 $18 {and the rest is easy.}) 23... Qd5 $16 {[%emt 0:02:08]} 24. Qe4 {[%emt 0:00:42]} Rcc8 $2 {[%emt 0:01:28]} (24... Qxe4+ $16 {was worth a try.} 25. dxe4 Ne3 26. Nxe3 dxe3) 25. Nb6 $1 $18 {[%emt 0:05:55][%csl LRc8,LRd5]} Qxe4+ {[%emt 0:03:13]} (25... Qc6 26. Nxc8 Qxc8) 26. dxe4 {[%emt 0:02:41]} Ne3 {[%emt 0:00:18]} 27. Nxc8 {[%emt 0:00:53]} Rxc8 {[%emt 0:00:02][%mdl 4096] Endgame KRR-KRN} 28. Rg7 {[%emt 0:00:46]} Nxc2 {[%emt 0:02:53]} (28... Rf8 $142 29. Rag1 h6) 29. Rag1 {[%emt 0:04:33]} d3 {[%emt 0:02:39]} 30. Rxf7 {[%emt 0:03:02]} Rg8 {[%emt 0:12:11]} 31. Rd1 {[%emt 0:10:35]} c4 {[%emt 0:09:11]} 32. Rd7 {[%emt 0:00:33]} h6 {[%emt 0:04:11]} 33. b3 {[%emt 0:02:20]} Ne3 {[%emt 0:02:21]} 34. Rb1 {[%emt 0:02:00]} d2 {[%emt 0:11:40]} 35. Rxd2 {[%emt 0:00:27] Black must now prevent Re1.} c3 {[%emt 0:00:29]} 36. Re2 {[%emt 0:02:51]} Rg3 {[%emt 0:02:56]} 37. Kh2 {[%emt 0:00:55]} Rf3 {[%emt 0:00:05]} 38. Rbe1 {[%emt 0:00:47]} c2 {[%emt 0:00:32]} 39. Rc1 {[%emt 0:02:00]} Kh7 {[%emt 0:01:13]} 40. b4 {[%emt 0:00:23]} Kg6 {[%emt 0:00:20]} 41. Rexc2 {[%emt 0:00:37] Rc7 is the strong threat.} Nxc2 {[%emt 0:00:21]} 42. Rxc2 {[%emt 0:00:05] KR-KR} Kh5 {[%emt 0:02:41]} 43. Kg2 {[%emt 0:00:07]} Rf4 {[%emt 0:00:05]} 44. Kh2 $2 {[%emt 0:00:07]} (44. Rf2 $18 Rxf2+ 45. Kxf2) 44... Kg6 $2 {[%emt 0:00:08][%mdl 8192]} (44... Rf3 $11 45. Rc7 Rd3 46. Rxb7 Kh4) 45. Rc7 {[%emt 0:00:05] Threatens to win with Rg7+. White is clearly winning.} Rxe4 {[%emt 0:00:06]} 46. Rg7+ {[%emt 0:00:12]} Kh5 {[%emt 0:00:03]} 47. Kg3 {[%emt 0:00:04]} Rxe5 {[%emt 0:00:03]} 48. Rxb7 {[%emt 0:00:17]} Re3+ {[%emt 0:00:07]} 49. Kg2 {[%emt 0:00:03] White threatens f7 and mate.} Re2+ {[%emt 0:00:02]} 50. Kf3 {[%emt 0:00:02]} Re1 {[%emt 0:00:02]} 51. Rb6 {[%emt 0:00:07]} (51. f7 $142 Rf1+ 52. Ke2) 51... Rf1+ {[%emt 0:00:03]} 52. Kg2 Rxf6 {[%emt 0:00:02]} 53. Rxa6 Rf4 {[%emt 0:00:22]} 54. Rb6 {[%emt 0:00:03]} e5 {[%emt 0:00:08]} 55. a6 {[%emt 0:00:04][%cal Ba5a6,Ba6a7][%mdl 32] Intending a7 and mate.} Rf8 {[%emt 0:00:06]} 56. b5 {[%emt 0:00:05][%cal Bb4b5,Bb5b6][%mdl 32]} Kg5 {[%emt 0:00:40]} 57. Rb7 {[%emt 0:00:07]} e4 {[%emt 0:00:28]} 58. a7 {[%emt 0:00:02] Threatening mate with Rb8.} e3 {[%emt 0:00:16]} 59. Re7 {[%emt 0:00:02]} Rf2+ {[%emt 0:00:14]} 60. Kg1 {[%emt 0:00:03]} Ra2 {[%emt 0:00:02]} 61. b6 {[%emt 0:00:03]} Kf6 {[%emt 0:00:09]} 62. Rxe3 {[%emt 0:00:03] Weighted Error Value: White=0.21 (precise) /Black=0.58} 1-0

[Event "12th WLC Weekend 2022"]
[Site "Eindhoven"]
[Date "2022.05.14"]
[Round "3.26"]
[White "Hubers, Daan"]
[Black "Verweij, David"]
[Result "1-0"]
[ECO "A00"]
[WhiteElo "1818"]
[BlackElo "1728"]
[Annotator "NA RC COMBH"]
[PlyCount "51"]
[EventDate "2022.05.13"]
[EventType "swiss"]
[EventCountry "NED"]
[SourceTitle "playchess.com"]
[Source "ChessBase"]
[SourceQuality "1"]
[TimeControl "5400+30"]

1. b4 {[%emt 0:00:04]} d5 {[%emt 0:00:18]} 2. Bb2 {[%emt 0:00:17]} Bf5 {[%emt 0:01:56]} 3. e3 {[%emt 0:00:22]} e6 {[%emt 0:00:27]} 4. c4 {[%emt 0:01:07]} Nf6 {[%emt 0:00:52]} 5. c5 {[%emt 0:00:48]} a5 {[%emt 0:01:56]} 6. a3 {[%emt 0:02:31]} b6 {[%emt 0:07:08]} 7. Qa4+ {[%emt 0:10:50]} c6 {[%emt 0:01:21]} 8. cxb6 {[%emt 0:07:48]} Qxb6 {[%emt 0:00:57]} 9. Bxf6 {[%emt 0:01:23]} gxf6 {[%emt 0:00:18]} 10. Nf3 {[%emt 0:03:43]} e5 {[%emt 0:02:16]} 11. Nc3 {[%emt 0:03:40]} Nd7 {[%emt 0:01:09]} 12. b5 {[%emt 0:03:54]} Nc5 {[%emt 0:29:09]} 13. Qh4 {[%emt 0:03:15]} Be7 {[%emt 0:04:43]} 14. bxc6 {[%emt 0:17:03]} Rb8 {[%emt 0:05:06]} 15. Bb5 {[%emt 0:02:46]} Kd8 {[%emt 0:08:59]} 16. O-O {[%emt 0:06:59]} Be6 {[%emt 0:02:59]} 17. Rab1 {[%emt 0:05:11]} Kc7 {[%emt 0:03:54]} 18. Nxe5 {[%emt 0:05:47]} Rhe8 {[%emt 0:02:35]} 19. Nd7 {[%emt 0:00:26]} f5 {[%emt 0:02:49]} 20. Qf4+ {[%emt 0:01:26]} Bd6 {[%emt 0:00:29]} 21. Nxb6 {[%emt 0:00:28]} Bxf4 {[%emt 0:00:23]} 22. Nbxd5+ {[%emt 0:00:25]} Bxd5 {[%emt 0:00:51]} 23. Nxd5+ {[%emt 0:00:13]} Kd6 {[%emt 0:00:28]} 24. Nxf4 {[%emt 0:00:31]} Rg8 {[%emt 0:00:24]} 25. Rfc1 {[%emt 0:01:23]} Rg4 {[%emt 0:00:56]} 26. Be2 {[%emt 0:01:15]} 1-0

[Event "12th WLC Weekend 2022"]
[Site "Eindhoven"]
[Date "2022.05.14"]
[Round "3.27"]
[White "Molenaar, Toine"]
[Black "Van Zon, Paul"]
[Result "1/2-1/2"]
[ECO "D23"]
[WhiteElo "1823"]
[BlackElo "2000"]
[Annotator "TA"]
[PlyCount "45"]
[EventDate "2022.05.13"]
[EventType "swiss"]
[EventCountry "NED"]
[SourceTitle "playchess.com"]
[Source "ChessBase"]
[SourceQuality "1"]
[TimeControl "5400+30"]

{[%evp 9,45,-7,25,8,30,17,29,22,13,26,46,35,38,43,40,32,50,35,39,14,13,22,59,45,78,1,18,-39,-33,-70,-66,-77,-22,-138,-18,-14,-12,-6]} 1. d4 {[%emt 0:00:04]} d5 {[%emt 0:00:05]} 2. c4 {[%emt 0:00:06]} c6 {[%emt 0:00:04]} 3. Nf3 {[%emt 0:00:04]} Nf6 {[%emt 0:00:04]} 4. Qb3 {[%emt 0:00:31]} dxc4 {[%emt 0:02:48]} 5. Qxc4 {[%emt 0:00:09]} Nbd7 {[%emt 0:02:14][%cal Oe7e5]} 6. g3 {[%emt 0:03:55] D23: Queen's Gambit Accepted: 3 Nf3 Nf6 sidelines.} Nb6 {[%emt 0:00:54]} (6... e5 {with more complications.} 7. dxe5 Nxe5 8. Nxe5 Qa5+) 7. Qc2 {[%emt 0:00:41]} Bg4 {[%emt 0:03:35]} 8. Nbd2 {[%emt 0:00:51] White has an edge.} e6 {[%emt 0:00:39]} 9. Bg2 {[%emt 0:01:12]} Bb4 {[%emt 0:01:35]} 10. O-O {[%emt 0:02:26]} O-O {[%emt 0:01:20] [#]} 11. a3 $146 {[%emt 0:05:35]} ({Predecessor:} 11. Rd1 Rc8 12. a3 Be7 13. b4 Ra8 14. Nb3 Bf5 15. Qd2 Ne4 16. Qe1 Nc4 17. Bd2 {1-0 (42) Severina,M (2154)-Khvorostova,A (1951) Albena 2011}) 11... Be7 {[%emt 0:00:32]} 12. b3 {[%emt 0:01:38][%cal Bb2b3,Bb3b4][%mdl 32]} Nbd7 {[%emt 0:05:50]} 13. Bb2 {[%emt 0:05:56]} Rc8 {[%emt 0:02:14]} 14. b4 {[%emt 0:03:31]} a5 {[%emt 0:02:51]} 15. Qb3 {[%emt 0:01:35]} b6 {[%emt 0:05:32]} 16. Rfc1 {[%emt 0:06:06]} Nd5 {[%emt 0:12:14][%cal Ra5b4]} 17. Bc3 {[%emt 0:08:19]} ({White should play} 17. e4 $16 N5f6 18. Rc2) 17... c5 {[%emt 0:07:09][%cal Rc5b4]} 18. dxc5 {[%emt 0:03:12]} (18. bxa5 $11 bxa5 19. Bb2) 18... bxc5 {[%emt 0:00:13]} 19. Bb2 {[%emt 0:12:38]} cxb4 {[%emt 0:02:04][%cal Od5c3]} 20. axb4 {[%emt 0:05:13]} axb4 {[%emt 0:07:29]} ({Better is} 20... Bxb4 $17 21. Rxc8 Qxc8) 21. e3 {[%emt 0:03:39] [#]} (21. Rxc8 $11 Qxc8 22. Nd4) 21... Nc3 {[%emt 0:02:43]} (21... Nc5 $1 $17 {[%cal Rc5b3]} 22. Qc4 Bf5) 22. Bxc3 $11 {[%emt 0:03:12]} bxc3 {[%emt 0:01:50]} 23. Rxc3 {[%emt 0:03:12] Weighted Error Value: White=0.32/Black=0.29 (precise)} 1/2-1/2

[Event "12th WLC Weekend 2022"]
[Site "Eindhoven"]
[Date "2022.05.14"]
[Round "3.28"]
[White "Van Kuijk, Vadim"]
[Black "Bakija, Alan"]
[Result "0-1"]
[ECO "B13"]
[WhiteElo "1898"]
[BlackElo "1868"]
[Annotator "NA RC COMBH"]
[PlyCount "58"]
[EventDate "2022.05.13"]
[EventType "swiss"]
[EventCountry "NED"]
[SourceTitle "playchess.com"]
[Source "ChessBase"]
[SourceQuality "1"]
[TimeControl "5400+30"]

1. e4 {[%emt 0:01:04]} c6 {[%emt 0:00:05]} 2. d4 {[%emt 0:00:07]} d5 {[%emt 0:00:03]} 3. exd5 {[%emt 0:00:34]} cxd5 {[%emt 0:00:05]} 4. Bd3 {[%emt 0:00:06]} Nc6 {[%emt 0:00:06]} 5. c3 {[%emt 0:00:03]} Nf6 {[%emt 0:00:51]} 6. Bf4 {[%emt 0:00:08]} Bg4 {[%emt 0:00:54]} 7. Qb3 {[%emt 0:00:05]} Qb6 {[%emt 0:00:04]} 8. Nd2 {[%emt 0:08:02]} e6 {[%emt 0:00:46]} 9. Ngf3 {[%emt 0:00:49]} Bh5 {[%emt 0:01:48]} 10. O-O {[%emt 0:01:47]} Be7 {[%emt 0:00:06]} 11. Ne5 {[%emt 0:05:28]} O-O {[%emt 0:00:18]} 12. Bg5 {[%emt 0:15:21]} Qc7 {[%emt 0:05:24]} 13. f4 {[%emt 0:01:47]} Ne8 {[%emt 0:06:25]} 14. Bxe7 {[%emt 0:00:53]} Qxe7 {[%emt 0:03:20]} 15. Rae1 {[%emt 0:08:15]} f5 {[%emt 0:26:51]} 16. Ndf3 {[%emt 0:14:36]} Bxf3 {[%emt 0:04:53]} 17. Rxf3 {[%emt 0:01:23]} Nd6 {[%emt 0:04:22]} 18. Rh3 {[%emt 0:06:04]} Ne4 {[%emt 0:03:42]} 19. Qd1 {[%emt 0:04:23]} Nxe5 {[%emt 0:02:55]} 20. dxe5 {[%emt 0:01:17]} Qc5+ {[%emt 0:02:16]} 21. Ree3 {[%emt 0:01:39]} g6 {[%emt 0:00:31]} 22. Bxe4 {[%emt 0:16:45]} fxe4 {[%emt 0:00:21]} 23. Qg4 {[%emt 0:00:48]} Rf5 {[%emt 0:02:20]} 24. Rhg3 {[%emt 0:05:40]} d4 {[%emt 0:12:44]} 25. b4 {[%emt 0:00:34]} Qc6 {[%emt 0:07:15]} 26. cxd4 {[%emt 0:02:13]} Qc1+ {[%emt 0:00:10]} 27. Kf2 {[%emt 0:00:05]} Raf8 {[%emt 0:00:16]} 28. Ke2 {[%emt 0:01:33]} Qc4+ {[%emt 0:00:30]} 29. Kd2 {[%emt 0:01:29]} Rxf4 {[%emt 0:00:10]} 0-1

[Event "12th WLC Weekend 2022"]
[Site "Eindhoven"]
[Date "2022.05.14"]
[Round "3.29"]
[White "Kurt, Sascha"]
[Black "Blijlevens, Pim"]
[Result "0-1"]
[ECO "C10"]
[WhiteElo "1751"]
[BlackElo "1958"]
[Annotator "TA"]
[PlyCount "134"]
[EventDate "2022.05.13"]
[EventType "swiss"]
[EventCountry "NED"]
[SourceTitle "playchess.com"]
[Source "ChessBase"]
[SourceQuality "1"]
[TimeControl "5400+30"]

{[%evp 17,133,31,35,8,8,0,0,-12,0,2,10,0,0,0,0,0,0,0,0,0,0,0,41,0,0,0,14,0,0,0,0,0,0,0,6,0,6,0,0,-7,0,0,0,0,0,-29,0,0,0,0,0,-35,-35,-35,-35,-35,-35,-35,-35,-35,-35,-35,-35,-37,0,0,0,0,0,0,0,0,0,0,0,0,0,0,0,-8,-8,-8,-8,-29965,-29966,-29965,-29967,-29967,-29969,-29965,-29970,-29970,-29971,-29973,-29972,-29972,-29973,-29972,-29974,-29974,-29975,-29975,-29976,-29976,-29977,-29976,-29978,-29978,-29979,-29979,-29979,-29979,-29980,-29990,-29991,-29991,-29992,-29999]} 1. e4 {[%emt 0:00:02]} e6 {[%emt 0:05:57]} 2. d4 {[%emt 0:00:05]} d5 {[%emt 0:00:10]} 3. Nd2 {[%emt 0:00:04]} dxe4 {[%emt 0:00:10]} 4. Nxe4 {[%emt 0:00:07]} Nd7 {[%emt 0:00:09]} 5. Nf3 {[%emt 0:00:47]} Ngf6 {[%emt 0:00:12]} 6. Nxf6+ {[%emt 0:00:52]} Nxf6 {[%emt 0:00:30]} 7. Bd3 {[%emt 0:00:50]} Be7 {[%emt 0:02:01]} 8. O-O {[%emt 0:00:40]} O-O {[%emt 0:00:25]} 9. c3 {[%emt 0:00:25]} b6 {[%emt 0:02:55]} 10. Qc2 {[%emt 0:01:02] C10: French with 3 Nc3: Unusual Black 3rd moves and 3...dxe4.} Bb7 {[%emt 0:01:32]} 11. Ng5 {[%emt 0:08:32][%cal Rd3h7]} h6 {[%emt 0:07:10]} 12. Ne4 {[%emt 0:00:38] The position is equal.} Nxe4 {[%emt 0:01:46]} 13. Bxe4 {[%emt 0:00:05]} Bxe4 {[%emt 0:00:09]} 14. Qxe4 {[%emt 0:00:04]} c5 {[%emt 0:01:10] [#]} 15. Be3 $146 {[%emt 0:02:39]} ({Predecessor:} 15. Rd1 Qc7 16. dxc5 Qxc5 17. Be3 Qb5 18. b3 Rad8 19. c4 Qa5 20. Qc2 Bf6 21. Rab1 Rxd1+ 22. Rxd1 {½-½ (55) Dixa,O (2087)-Rosa,A (1416) Pokrzywna 2020}) 15... Qc7 {[%emt 0:06:14]} 16. dxc5 {[%emt 0:02:29]} Bxc5 {[%emt 0:00:20]} 17. Bxc5 {[%emt 0:00:36]} Qxc5 {[%emt 0:00:09]} 18. Rad1 {[%emt 0:03:04]} Rfd8 {[%emt 0:04:28]} 19. Rd3 {[%emt 0:02:06]} Rxd3 {[%emt 0:06:54]} 20. Qxd3 $11 {[%emt 0:00:08][%mdl 4096] Endgame KQR-KQR} Rc8 {[%emt 0:01:20]} 21. Rd1 {[%emt 0:00:34]} g6 {[%emt 0:02:42]} 22. Qd4 {[%emt 0:04:07]} Qxd4 {[%emt 0:00:54]} 23. Rxd4 {[%emt 0:00:07] KR-KR} Rc7 {[%emt 0:00:14]} 24. Kf1 {[%emt 0:00:33]} Kg7 {[%emt 0:00:11]} 25. Ke2 {[%emt 0:00:13]} Kf6 {[%emt 0:00:57]} 26. Kd2 {[%emt 0:00:44]} e5 {[%emt 0:00:31]} 27. Rd3 {[%emt 0:00:38]} Ke6 {[%emt 0:01:14]} 28. Kc2 {[%emt 0:00:56]} f5 {[%emt 0:00:21]} 29. Rd8 {[%emt 0:00:33]} e4 {[%emt 0:02:33]} 30. Rh8 {[%emt 0:02:09]} h5 {[%emt 0:00:09]} 31. Rd8 {[%emt 0:01:38]} Ke5 {[%emt 0:02:06]} (31... Rd7 $5 {[%cal Rd7d8]} 32. Rh8 Ke5 $11) 32. g3 {[%emt 0:00:33]} h4 {[%emt 0:01:43]} 33. Kd2 {[%emt 0:03:09]} Rh7 {[%emt 0:03:47]} 34. Ke3 {[%emt 0:01:32]} hxg3 {[%emt 0:02:24]} 35. hxg3 {[%emt 0:00:16]} Rh1 {[%emt 0:04:20]} 36. Ra8 {[%emt 0:00:52]} Re1+ {[%emt 0:07:31]} 37. Kd2 {[%emt 0:00:27]} Rb1 {[%emt 0:00:44]} 38. Rxa7 {[%emt 0:00:44]} Rxb2+ {[%emt 0:00:09]} 39. Ke3 {[%emt 0:00:51]} Rc2 {[%emt 0:03:48]} 40. Re7+ {[%emt 0:01:04]} Kd6 {[%emt 0:09:17]} 41. Rg7 {[%emt 0:01:35]} Kc5 {[%emt 0:02:57]} 42. Rxg6 {[%emt 0:01:05]} Rxc3+ {[%emt 0:00:13]} 43. Kd2 {[%emt 0:02:49]} Ra3 {[%emt 0:01:15]} 44. Rg5 {[%emt 0:01:16]} Rxa2+ {[%emt 0:00:22]} 45. Ke1 {[%emt 0:00:11]} b5 {[%emt 0:03:33][%cal Bb6b5,Bb5b4,Bb4b3][%mdl 32]} 46. Rxf5+ {[%emt 0:00:09]} Kc4 {[%emt 0:00:13]} 47. Re5 {[%emt 0:00:44]} b4 {[%emt 0:00:34] aiming for ...b3.} 48. Rxe4+ {[%emt 0:00:05]} Kd3 {[%emt 0:01:00][%cal Ra2a1]} 49. Re3+ {[%emt 0:00:42]} Kc2 {[%emt 0:01:46] And now ...b3 would win.} 50. f4 $2 {[%emt 0:12:24][%mdl 8192] Now White is beyond hope.} (50. Re2+ $11 Kb3 51. f4) 50... b3 {[%emt 0:00:27] Black mates.} 51. Kf2 {[%emt 0:01:24]} b2 {[%emt 0:00:22]} 52. Re1 {[%emt 0:01:09]} Kc3 {[%emt 0:02:43]} (52... b1=Q 53. Rxb1 Kxb1+ 54. Ke3 $11) 53. Rb1 {[%emt 0:01:39]} Ra1 {[%emt 0:00:06]} 54. Rxb2 {[%emt 0:00:09]} Kxb2 {[%emt 0:00:03] KR-KPP} 55. Kf3 {[%emt 0:00:36]} Kc3 {[%emt 0:00:15]} 56. Ke4 {[%emt 0:05:24]} Kc4 {[%emt 0:02:11]} 57. g4 {[%emt 0:00:59]} Re1+ {[%emt 0:00:51]} 58. Kf5 {[%emt 0:00:08]} Kd5 {[%emt 0:00:24]} 59. g5 {[%emt 0:01:21]} Kd6 $1 {[%emt 0:00:29]} 60. Kf6 {[%emt 0:00:27]} Kd7 $1 {[%emt 0:00:20]} 61. g6 {[%emt 0:04:43] [#]} Ke8 $1 {[%emt 0:08:30]} 62. Kg7 {[%emt 0:00:21]} Rf1 {[%emt 0:00:49]} 63. Kh7 {[%emt 0:00:35]} Rxf4 {[%emt 0:00:11]} 64. g7 {[%emt 0:00:12] [#]} Rh4+ $1 {[%emt 0:00:10]} 65. Kg8 {[%emt 0:02:41]} Rg4 {[%emt 0:00:11]} 66. Kh7 {[%emt 0:00:04]} Kf7 {[%emt 0:00:09][%cal Rg4h4]} 67. Kh8 {[%emt 0:00:01]} Rh4# {[%emt 0:00:42] Weighted Error Value: White=0.16 (very precise) /Black=0.03 (flawless)} 0-1